Cogmind - Beta 17 @@@ ROGUE MODE // 2026.07.02 @ 06:18:41 Player: Elxavo Result: Self-destructed Performance ------------- Evolutions (1) 500 Regions Visited (3) 600 Robots Destroyed (25) 125 Value Destroyed (531) 531 Prototype IDs (1) 20 Alien Tech Used (0) 0 Bonus (0) 0 TOTAL SCORE: 1776 Bonus ------- None Cogmind --------- Core Integrity 324/400 Matter 300/300 Energy 250/250 System Corruption 0% Temperature Cool (12) Movement Walking (120) Location -9/Mines Parts ------- > --- POWER (1) -------- Ion Engine > --- PROPULSION (4) --- Improved Aluminum Leg Improved Aluminum Leg Improved Aluminum Leg Improved Aluminum Leg > --- UTILITY (2) ------ Medium Storage Unit Sensor Array > --- WEAPON (2) ------- Improved EM Shotgun Beam Cannon > --- INVENTORY (10) --- Ion Engine Heat Sink Improved Signal Interpreter Seismic Detector Improved Light Armor Plating Assault Rifle Improved Light Cannon Improved Light Cannon Mining Laser Heavy Hammer Peak State ------------ > --- POWER ------------ Ion Engine > --- PROPULSION ------- Improved Aluminum Leg Improved Aluminum Leg Improved Aluminum Leg Improved Aluminum Leg > --- UTILITY ---------- Medium Storage Unit Sensor Array > --- WEAPON ----------- Improved EM Shotgun Beam Cannon > --- INVENTORY -------- Ion Engine Heat Sink Seismic Detector Authchip [R/Combat] Improved Light Cannon Improved Light Cannon Mining Laser [Rating: 16] Favorites ----------- Power Ion Engine Engine Ion Engine Propulsion Light Treads Treads Light Treads Leg Improved Aluminum Leg Utility Sensor Array Device Sensor Array Storage Medium Storage Unit Weapon EM Pulse Gun Energy Gun EM Pulse Gun Energy Cannon Beam Cannon Ballistic Gun Light Assault Rifle Ballistic Cannon Improved Light Cannon Build | -11 -10 -9 -9 ------- Run | Yrd Mat Mat Min Slots Evolved 2 | . . 2 . Power . | . . . . Propulsion 2 | . . 2 . Utility . | . . . . Weapon . | . . . . Parts Attached 19 | 7 9 3 . Power 3 | 1 1 1 . Engine 3 | 1 1 1 . Core . | . . . . Reactor . | . . . . Propulsion 6 | 2 2 2 . Treads 2 | 2 . . . Leg 4 | . 2 2 . Wheel . | . . . . Hover . | . . . . Flight . | . . . . Utility 4 | 2 2 . . Device 2 | 1 1 . . Storage 2 | 1 1 . . Processor . | . . . . Hackware . | . . . . Protection . | . . . . Artifact . | . . . . Weapon 6 | 2 4 . . Energy Gun 3 | 1 2 . . Energy Cannon 1 | . 1 . . Ballistic Gun 1 | 1 . . . Ballistic Cannon 1 | . 1 . . Launcher . | . . . . Special Weapon . | . . . . Impact Weapon . | . . . . Slashing Weapon . | . . . . Piercing Weapon . | . . . . Special Melee Weapon . | . . . . Unidentified Prototypes 1 | . 1 . . Parts Lost 1 | . 1 . . Power 1 | . 1 . . Propulsion . | . . . . Utility . | . . . . Weapon . | . . . . Highest Loss Streak 1 | . 1 . . To Critical Strikes . | . . . . Average Backups 8 | 3 8 8 10 Power . | . . 1 1 Propulsion . | 1 1 . . Utility 3 | . 4 3 4 Weapon 2 | 1 2 3 5 Tool/Special . | . . . . Unused Backups 17 | . 8 1 8 Power 2 | . 1 . 1 Propulsion 3 | . 3 . . Utility 7 | . 3 1 3 Weapon 5 | . 1 . 4 Tool/Special . | . . . . Average Slot Usage (%) 99 | . 99 99 100 Engine 13 | . 13 11 11 Treads 21 | . 27 . . Leg 9 | . . 43 44 Device 13 | . 14 11 11 Storage 13 | . 14 11 11 Energy Gun 13 | . 13 11 11 Energy Cannon 2 | . . 11 11 Ballistic Gun 2 | . 3 . . Ballistic Cannon 7 | . 10 . . Peak Build Rating 16 | 7 13 16 16 Average Rating 9 | 5 8 15 16 On Entrance 8 | . 7 12 16 Avg Prop Armor Cover (%) 12 | . . . 12 Naked Turns . | . . . . Heaviest Build 22 | 14 22 22 22 Greatest Support 52 | 40 40 52 52 Greatest Overweight (x) 1 | . 1 . . Average Overweight (x) . | . . . . Largest Inventory Capacity 10 | 8 10 10 10 Average Capacity 9 | 7 8 10 10 Most Carried 10 | 5 10 10 10 Average Carried 8 | 3 8 8 10 Final Capacity 10 | 8 10 10 10 Final Carried 10 | 5 9 10 10 Class Distribution -------------------- 100% | Mutant Dominant Class ---------------- Mutant | -10/Materials Mutant | -9/Materials Mutant | -9/Mines Resources | -11 -10 -9 -9 ----------- Run | Yrd Mat Mat Min Matter Collected 492 | 279 117 96 . Remotely . | . . . . Salvage Created 760 | 77 408 275 . Parts 55 | 9 19 27 . Haulers Intercepted 1 | . 1 . . Recyclers Shooed 2 | . 2 . . Parts Field Recycled . | . . . . Retrieved Matter . | . . . . Parts Self-Destructed . | . . . . Prevented . | . . . . Parts Restored . | . . . . Kills | -11 -10 -9 -9 ------- Run | Yrd Mat Mat Min Combat Hostiles Destroyed 17 | . 6 11 . Guns 10 | . 4 6 . Cannons 5 | . 2 3 . AOE 2 | . . 2 . Classes Destroyed 7 | 1 4 2 . Tunneler 3 | 3 . . . Hauler 1 | . 1 . . Recycler 1 | . 1 . . Watcher 3 | . 3 . . Swarmer 8 | . . 8 . Grunt 7 | . 6 1 . Sentry 2 | . . 2 . Best Kill Streak 8 | 2 3 8 . Combat Bots Only 8 | . 2 8 . Max Kills in Single Turn 2 | 1 1 2 . Gunslinging . | . . . . Exploded 2 | . . 2 . Melee . | . . . . Uniques/NPCs Destroyed . | . . . . Combat | -11 -10 -9 -9 -------- Run | Yrd Mat Mat Min Hostile Shots Fired 118 | . 40 57 21 Missed 34 | . 7 17 10 Hits 84 | . 33 40 11 Melee 1 | . . . 1 Projectile 83 | . 33 40 10 Critical Strikes 4 | . 2 2 . Part Disruptions 2 | . . . 2 Damage Taken 965 | . 422 395 148 Core 132 | . 56 47 29 Absorbed by Shields . | . . . . Regen/Repaired (Parts) 44 | . 44 . . Core Remaining (%) 88 | 100 77 . . Volleys Fired 67 | 9 32 24 2 Largest 2 | 2 2 2 2 Hottest 105 | 60 73 105 105 Shots Fired 119 | 15 64 36 4 Gun 79 | 15 50 12 2 Cannon 40 | . 14 24 2 Launcher . | . . . . Special . | . . . . Kinetic 41 | 9 32 . . Thermal 26 | . . 24 2 Explosive . | . . . . Electromagnetic 52 | 6 32 12 2 Robot Hit Streak 13 | 2 13 8 1 Robot Miss Streak 6 | 3 4 6 2 Penetration Max . | . . . . Secondary Targets 1 | . 1 . . Max Gunslinging Chain 1 | . 1 . . Shots Hit Robots 71 | 7 43 20 1 Core Hits 39 | 4 21 14 . Critical Kills . | . . . . Critical Parts Destroyed . | . . . . Critical Strikes 1 | 1 . . . Corrupt 1 | 1 . . . Melee Attacks . | . . . . Impact . | . . . . Slashing . | . . . . Piercing . | . . . . Sneak Attacks . | . . . . Combat Hostiles . | . . . . Follow-up Attacks . | . . . . Damage Inflicted 1128 | 85 603 413 27 Guns 570 | 85 374 102 9 Cannons 445 | . 196 231 18 Explosions 113 | . 33 80 . Melee . | . . . . Ramming . | . . . . Kinetic 355 | 43 312 . . Thermal 362 | . 33 311 18 Explosive . | . . . . Electromagnetic 411 | 42 258 102 9 Impact . | . . . . Slashing . | . . . . Piercing . | . . . . Highest Corruption . | . . . . Average Corruption . | . . . . Corruption Purged . | . . . . Corruption Blocked . | . . . . Overload Shots . | . . . . Overflow Damage 8 | . 8 . . Projectiles . | . . . . Explosions 8 | . 8 . . Melee . | . . . . Knockbacks 2 | . 2 . . Impact . | . . . . Kinetic 2 | . 2 . . Secondary . | . . . . Self-Inflicted Damage 11 | . 11 . . Shots 1 | . 1 . . Rammed . | . . . . Targets Rammed . | . . . . Kicked . | . . . . Crushed . | . . . . Highest Temperature 360 | 40 177 360 56 Average Temperature 89 | 17 70 128 28 Received Heat Transfer 400 | . 267 72 61 Effects 3 | . . 3 . Interference 2 | . . 2 . Damage (minor) 1 | . . 1 . Siege Activations . | . . . . Martial Activations . | . . . . Shielding Activations . | . . . . Robots Disrupted . | . . . . Combat Hostiles . | . . . . Robots Corrupted . | . . . . Combat Hostiles . | . . . . Parts Fried . | . . . . Impact Corruptions . | . . . . Robots Melted . | . . . . Combat Hostiles . | . . . . Parts Melted 3 | . 2 1 . Heat Transferred 618 | . 50 531 37 Parts Sabotaged . | . . . . Parts Stolen . | . . . . Parts Stripped . | . . . . Power Chain Reactions 2 | . 1 1 . Alert | -11 -10 -9 -9 ------- Run | Yrd Mat Mat Min Maximum Alert Level 1 | . . 1 . Low Security (%) 91 | 100 100 52 100 Level 1 8 | . . 47 . Level 2 . | . . . . Level 3 . | . . . . Level 4 . | . . . . Level 5 . | . . . . High Security . | . . . . Max Security . | . . . . Peak Influence 250 | 10 52 250 81 Initial 81 | . . . 81 Average 30 | . 8 130 74 Influence Increases 586 | 15 241 330 . Destroy 0b10 Robot/C 340 | . 120 220 . Destroy 0b10 Robot/NC 40 | 15 25 . . Destroy Leader 68 | . 28 40 . Successful Hack 26 | . 20 6 . Disable Machine 30 | . 15 15 . Destroy Structure 7 | . 3 4 . Lose Combat Pursuer 75 | . 30 45 . Influence Decreases 525 | 15 241 120 149 Entered New Map 129 | . . . 129 Time Decay 386 | 15 231 120 20 Lost Part 10 | . 10 . . Squads Dispatched 1 | . 1 . . Investigation 1 | . 1 . . Extermination . | . . . . Reinforcement . | . . . . Assault . | . . . . Garrison . | . . . . Intercept . | . . . . Searches Triggered . | . . . . Construction Impeded . | . . . . Haulers Reinforced . | . . . . Active Scanning Responses . | . . . . Cargo Convoy Interrupts . | . . . . Stealth | -11 -10 -9 -9 --------- Run | Yrd Mat Mat Min Distress Signals 2 | . 2 . . Communications Jammed . | . . . . Distress Signals . | . . . . Times Spotted 52 | . 14 15 23 Peak Tracking Total 20 | . 4 9 20 Tactical Retreats 3 | . 1 1 1 Traps | -11 -10 -9 -9 ------- Run | Yrd Mat Mat Min Traps Triggered 1 | . 1 . . Indirectly . | . . . . Trap Hack Attempts . | . . . . Triggered . | . . . . Disarmed . | . . . . Reprogrammed . | . . . . Reused . | . . . . Traps Extracted . | . . . . Installed . | . . . . Triggered . | . . . . Machines | -11 -10 -9 -9 ---------- Run | Yrd Mat Mat Min Machines Disabled 2 | . 1 1 . Max in Single Turn 1 | . 1 1 . Machines Repaired . | . . . . Machines Dismantled . | . . . . Machines Sabotaged . | . . . . Overloaded Fab Kills . | . . . . Hacking | -11 -10 -9 -9 --------- Run | Yrd Mat Mat Min Machines Accessed 6 | . 5 1 . Terminals 5 | . 4 1 . Fabricators . | . . . . Repair Stations 1 | . 1 . . Recycling Units . | . . . . Scanalyzers . | . . . . Garrison Access . | . . . . Total Hacks 16 | . 14 2 . Successful 12 | . 11 1 . Failed 4 | . 3 1 . Catastrophic . | . . . . Database Lockouts . | . . . . Manual . | . . . . Terminals 12 | . 10 2 . Fabricators . | . . . . Repair Stations 4 | . 4 . . Recycling Units . | . . . . Scanalyzers . | . . . . Garrison Access . | . . . . Terminal Hacks 10 | . 9 1 . Robot Analysis 1 | . . 1 . Emergency Access Points 2 | . 2 . . Locate Traps 1 | . 1 . . Dispatch Records 1 | . 1 . . Hauler Manifests 1 | . 1 . . Registered Components 1 | . 1 . . Zone Layout 3 | . 3 . . Fabricator Hacks . | . . . . Repair Station Hacks 2 | . 2 . . Scan Component 1 | . 1 . . Repair 1 | . 1 . . Recycling Unit Hacks . | . . . . Scanalyzer . | . . . . Garrison Access Hacks . | . . . . Unauthorized Hacks . | . . . . Terminals . | . . . . Fabricators . | . . . . Repair Stations . | . . . . Recycling Units . | . . . . Scanalyzers . | . . . . Garrison Access . | . . . . Data Cores Recovered . | . . . . Used . | . . . . Hacking Detections 1 | . . 1 . Full Trace Events . | . . . . Feedback Events . | . . . . Feedback Blocked . | . . . . Robot Schematics Acquired . | . . . . Robots Built . | . . . . Authchips . | . . . . Time . | . . . . Total Robot Build Rating . | . . . . Part Schematics Acquired . | . . . . Parts Built . | . . . . Authchips . | . . . . Time . | . . . . Total Part Build Rating . | . . . . Part Studies Acquired . | . . . . Parts Repaired 1 | . 1 . . Time 26 | . 26 . . Parts Recycled . | . . . . Recycled Matter . | . . . . Retrieved Matter . | . . . . Retrieved Components . | . . . . Parts Scanalyzed . | . . . . Part Schematics Acquired . | . . . . Parts Damaged . | . . . . Bothacking | -11 -10 -9 -9 ------------ Run | Yrd Mat Mat Min Used RIF Installer . | . . . . Robots Hacked . | . . . . Non-combat . | . . . . Combat . | . . . . Robot Hacks Applied . | . . . . Relay Couplers Released . | . . . . Fabnet Peak Effective % . | . . . . Robots Rewired . | . . . . Allies Hacked . | . . . . Hacks Repelled . | . . . . Allies | -11 -10 -9 -9 -------- Run | Yrd Mat Mat Min Total Allies . | . . . . Largest Group . | . . . . Highest-Rated Group . | . . . . Highest-Rated Ally . | . . . . Total Orders . | . . . . Ally Attacks . | . . . . Total Damage . | . . . . Kills . | . . . . Allies Corrupted . | . . . . Allies Melted . | . . . . Intel | -11 -10 -9 -9 ------- Run | Yrd Mat Mat Min Active Infowar (turns) 2069 | 53 1736 238 42 Sensors 1521 | . 1241 238 42 Seismic 548 | 53 495 . . Robot Analysis Total 1 | . . 1 . Derelict Logs Recovered . | . . . . Drone Launches . | . . . . Drone Recoveries . | . . . . Exploration | -11 -10 -9 -9 ------------- Run | Yrd Mat Mat Min Turns Passed 2305 | 132 1737 394 42 Spaces Moved 871 | 64 614 163 30 Core 6 | 6 . . . Treads 635 | 58 577 . . Legs 230 | . 37 163 30 Wheels . | . . . . Hover . | . . . . Flight . | . . . . Fastest Speed 50 | 50 120 120 120 Average Speed 148 | 149 157 120 120 Slowest Speed 190 | 160 190 120 120 Overloaded Moves . | . . . . Propulsion Burnouts . | . . . . Robots Hopped . | . . . . Potential Cave-ins . | . . . . Cave-ins Triggered . | . . . . Exploration Rate (%) 31 | 4 98 14 11 Regions Visited 3 Branch Regions 1 Pre-discovered Areas . | . . . . Known Exits Taken . | . . . . Unknown Exits Taken 3 | 1 1 1 . Scrap Searched . | . . . . Spaces Dug . | . . . . Terrain Destroyed 6 | . 3 3 . Melee . | . . . . Projectile 1 | . 1 . . AOE 5 | . 2 3 . Terrain Rammed . | . . . . Walls Destroyed . | . . . . Machines Disabled . | . . . . Actions | -11 -10 -9 -9 --------- Run | Yrd Mat Mat Min Total 1768 | 84 1326 326 32 Wait 768 | . 640 128 . Move 868 | 63 613 162 30 Hop . | . . . . Pick Up 25 | 5 15 5 . Fast Attach 13 | 7 6 . . Attach 3 | . 1 2 . Detach . | . . . . Swap 5 | . 3 2 . Drop 19 | . 16 3 . Fire 67 | 9 32 24 2 Melee . | . . . . Ram . | . . . . Kick . | . . . . Crush . | . . . . Escape Stasis . | . . . . Rewire . | . . . . Trap . | . . . . Miscellaneous . | . . . . Route ------- -11/Scrapyard -10/Materials (discovered 5 exits: *Mat x3 / [*Min x2]) -9/Materials -9/Mines History --------- Turn | Location | Event 6 | -11/Scrapyard | Discovered new exit (range 15) 133 | -11/Scrapyard | Entered Materials 315 | -10/Materials | Build established: Mutant 798 | -10/Materials | Discovered new exit (range 16) 851 | -10/Materials | Repaired EM Pulse Gun 978 | -10/Materials | Discovered new exit (range 13) 1248 | -10/Materials | Discovered new exit (range 15) 1362 | -10/Materials | Discovered new exit (range 13) 1805 | -10/Materials | Discovered new exit (range 16) 1870 | -10/Materials | Entered another Materials area 1870 | -9/Materials | Evolved 2 slots: Propulsion x2 2072 | -9/Materials | Destroyed 8 combat bots 2102 | -9/Materials | Discovered new exit (range 12) 2264 | -9/Materials | Entered Mines 2265 | -9/Mines | Assembled infested the area 2306 | -9/Mines | Self-destructed Last Messages --------------- 02152_ U-05 Engineer builds a Door. 02153_ Acquired Ion Engine. 02157_ R-06 Scavenger collects Lgt. Armor Plating. 02170_ R-06 Scavenger collects Aluminum Leg. 02173_ Y-45 Defender heat spikes uncontrollably. 02174_ K-01 Serf collects debris. 02174_ Beam Rifle melted. 02174_ Y-45 Defender destroyed. 02200_ Acquired Hvy. Hammer. 02206_ R-06 Scavenger collects Lgt. Treads. 02210_ R-06 Scavenger collects Heat Sink. 02219_ Dropped Lgt. Ion Engine. 02221_ Acquired Imp. Light Armor Plating. 02224_ Dropped Authchip [R/Combat]. 02225_ Acquired Imp. Signal Interpreter. 02244_ Acquired 10 matter. LOCATION=UNKNOWN GOAL=ESCAPE 02265_ ALERT: Infestation in the mines, dispatching Demolisher response squad. Map ----- +----------------------------------------------------+ | | | | | | | | | | | | | | | | | | | | | | | | | | | | | ?????????????????????????????????????????????????? | | ?????????????????????????????????????????????????? | | ?????????????????????????????????????????????????? | | ?????????????????????????????????????????????????? | | ???????????????????###########???????????????????? | | ????????????????# """" """" #???????????????????? | | ????????????????# """" """" #???????????????????? | | ????????????????# """" """" #???????????????????? | | ????????????????#ggg #???????????????????? | | ????????????????# #???????????????????? | | ????????????????# #???????????????????? | | ????????????????# @ #???????????????????? | | ?????????????????####### #####???????????????????? | | ???????????#############a#???????????????????????? | | ???????# ?? a #???????????????????????? | | ???????????#######?#######???????????????????????? | | ?????????????????#?#?????????????????????????????? | | ?????????????????#?#?????????????????????????????? | | ?????????????????#?#?????????????????????????????? | | ?????????????????# #?????????????????????????????? | | ??????????####???# #?????????????????????????????? | | ?????????## ##??#?#?????????????????????????????? | | ?????????# #??# #?????????????????????????????? | | ????????## ???#?#?????????????????????????????? | | ???????## ????# #?????????????????????????????? | | ??????## #????# #?????????????????????????????? | | ###### ##???# #?????????????????????????????? | | " ##### #?????????????????????????????? | | #?????????????????????????????? | | ?####### ########?????????????????????????????? | | ???????######????????????????????????????????????? | | ?????????????????????????????????????????????????? | | ?????????????????????????????????????????????????? | | ?????????????????????????????????????????????????? | | ?????????????????????????????????????????????????? | | ?????????????????????????????????????????????????? | +----------------------------------------------------+ Best States ------------- Heat Dissipation 28 Energy Generation 10 Energy Capacity 250 Matter Stores 300 Matter Capacity 300 Sight Range 16 Robot Scan Range 14 Terrain Scan Density 10 Evasion (%) 55 Recoil Reduction 2 Authchip Count 2 Item Schematics ----------------- None Robot Schematics ------------------ None Fabricated ------------ Nothing Repaired ---------- EM Pulse Gun | 2% | -10/Materials Studied --------- None Alien Tech Used ----------------- None Achievements -------------- None Challenges ------------ None Game ------ Seed TachyonCryofiberShield Manual? 0 Play Time 00:22:44 Cumulative 116.5 hours Start 2026.07.02 @ 05:56:29 End 2026.07.02 @ 06:18:41 Sessions 1 Manual Loads 0 Difficulty Rogue Special Mode None Game No. 142 Rogue 142 Adventurer 0 Explorer 0 Win Type - Total 0 Types 0/0/0/0/0/0/0/0/0/0 Lore% 47 Gallery% 28 Achievement% 25 Wizard Run 0 Options --------- Layout 0 ASCII 0 Keyboard 0 Movement Mouse Keybinds 0 Fullscreen 1 Font 18/SmallcapsGlow Map View 76x50 Zoom Use 0% Tactical HUD 1 Map Filters NONE Filters LOW_CONTRAST(13,24,33) Steam 1 RUN: b935d0bb-3dc3-40ea-8865-2f21d41a58ee